bitfinex/quotes_SOLUSD_20240917
["timestamp","ask_amount","ask_price","bid_price","bid_amount"]
[1726586810557,7.3742,135.61,135.59,50.0]
[1726586811459,7.3734,135.63,135.59,50.0]
[1726586811632,23.0419733,135.64,135.61,50.0]
[1726586811834,16.6996733,135.64,135.61,50.0]
[1726586812028,24.0721733,135.64,135.61,50.0]
[1726586812238,7.6091733,135.64,135.61,50.0]
[1726586812429,7.6090733,135.64,135.63,50.0]
[1726586812735,0.2366733,135.64,135.61,50.0]
[1726586813156,7.6095733,135.64,135.61,50.0]
[1726586813852,0.2366733,135.64,135.63,50.0]
[1726586814353,0.2366733,135.64,135.61,7.3735]
[1726586814556,0.2366733,135.64,135.63,50.0]
[1726586815136,7.6090733,135.64,135.63,50.0]
[1726586815840,0.2366733,135.64,135.63,50.0]
[1726586816041,7.6090733,135.64,135.63,50.0]
[1726586816970,0.2366733,135.64,135.63,50.0]
[1726586822944,0.2366733,135.64,135.63,57.373]
[1726586823152,0.2366733,135.64,135.63,81.149884]
[1726586823840,0.2366733,135.64,135.63,81.275374]
[1726586824043,0.2366733,135.64,135.63,81.400864]
[1726586827639,0.2366733,135.64,135.63,99.833364]
[1726586828566,0.2366733,135.64,135.63,119.833364]
[1726586831162,0.5210404,135.68,135.67,50.0]
[1726586831363,0.5210404,135.68,135.67,99.825664]
[1726586833472,0.5210404,135.68,135.67,105.910964]
[1726586835583,0.5210404,135.68,135.67,55.910964]
[1726586835871,0.5210404,135.68,135.67,105.910964]
[1726586836277,0.5210404,135.68,135.67,50.0]
[1726586836452,0.5210404,135.68,135.67,57.3708]
[1726586836776,0.5210404,135.68,135.67,50.0]
[1726586837085,0.5210404,135.68,135.67,57.3708]
[1726586837871,0.5210404,135.68,135.67,81.273174]
[1726586838044,0.5210404,135.68,135.67,81.398664]
[1726586839672,0.5210404,135.68,135.67,74.027864]
[1726586839862,0.5210404,135.68,135.67,50.0]
[1726586841171,0.5210404,135.68,135.67,50.12549]
[1726586841375,0.5210404,135.68,135.67,81.398664]
[1726586842043,0.5210404,135.68,135.67,73.902374]
[1726586842258,0.5210404,135.68,135.67,73.776884]
[1726586843556,0.5210404,135.68,135.67,99.700174]
[1726586843965,0.5210404,135.68,135.67,99.825664]
[1726586848355,0.5210404,135.68,135.67,50.12549]
[1726586848550,0.5210404,135.68,135.67,50.0]
[1726586849050,0.5210404,135.68,135.67,57.3708]
[1726586849276,0.5210404,135.68,135.67,50.0]
[1726586849783,0.5210404,135.68,135.67,73.902374]
[1726586850162,0.5210404,135.68,135.67,81.273174]
[1726586850677,0.5210404,135.68,135.67,81.398664]
[1726586850880,0.5210404,135.68,135.67,74.027864]
[1726586851082,0.5210404,135.68,135.67,81.398664]
[1726586851290,7.8912404,135.68,135.67,50.0]
[1726586851458,0.5210404,135.68,135.67,50.0]
[1726586853057,0.5210404,135.68,135.67,73.776884]
[1726586854565,0.5210404,135.68,135.67,74.027864]
[1726586855478,0.5210404,135.68,135.67,81.398664]
[1726586856096,0.5210404,135.68,135.67,74.027864]
[1726586856459,0.5210404,135.68,135.67,81.398664]
[1726586864583,0.5210404,135.68,135.67,50.0]
[1726586869617,7.8912404,135.68,135.67,50.0]
[1726586870110,0.5210404,135.68,135.67,50.0]
[1726586871095,0.5210404,135.68,135.67,73.776884]
[1726586871492,0.5210404,135.68,135.67,81.147684]
[1726586871890,0.5210404,135.68,135.67,81.398664]
[1726586873296,0.5210404,135.68,135.67,73.776884]
[1726586873815,0.5210404,135.68,135.67,50.0]
[1726586879127,7.8912404,135.68,135.67,50.0]
[1726586879819,0.5210404,135.68,135.67,50.0]
[1726586881218,0.5210404,135.68,135.67,57.3708]
[1726586881420,0.5210404,135.68,135.67,82.87243665]
[1726586881716,0.5210404,135.68,135.67,81.398664]
[1726586881920,0.5210404,135.68,135.67,50.0]
[1726586882104,0.5210404,135.68,135.67,81.273174]
[1726586882306,0.5210404,135.68,135.67,81.398664]
[1726586883823,0.5210404,135.68,135.67,50.0]
[1726586884603,0.5210404,135.68,135.67,57.3708]
[1726586884797,0.5210404,135.68,135.67,58.8445795]
[1726586885206,0.5210404,135.68,135.67,82.6214635]
[1726586885927,0.5210404,135.68,135.67,81.147684]
[1726586886593,0.5210404,135.68,135.67,73.776884]
[1726586886928,0.5210404,135.68,135.67,50.0]
[1726586888112,0.5210404,135.68,135.67,57.3708]
[1726586888706,0.5210404,135.68,135.67,81.147684]
[1726586889304,0.5210404,135.68,135.67,81.398664]
[1726586890501,0.5210404,135.68,135.67,104.25241888]
[1726586890998,0.5210404,135.68,135.67,81.398664]
[1726586893227,0.5210404,135.68,135.67,81.147684]
[1726586894102,0.5210404,135.68,135.67,81.398664]
[1726586895515,0.5210404,135.68,135.67,81.147684]
[1726586895832,0.5210404,135.68,135.67,50.0]
[1726586896430,0.5210404,135.68,135.65,50.0]
[1726586896431,7.1057404,135.68,135.65,50.0]
[1726586896723,7.1057404,135.68,135.63,50.0]
[1726586896724,22.4075,135.65,135.63,50.0]
[1726586896903,7.3724,135.64,135.61,50.0]
[1726586899425,22.4076,135.65,135.61,50.0]
[1726586900302,15.0356,135.65,135.61,50.0]
[1726586901013,7.3726,135.64,135.59,68.4371]
[1726586901213,7.3741,135.61,135.57,50.0]
[1726586901414,15.7502,135.6,135.57,50.0]
[1726586904330,15.7502,135.6,135.57,57.3762]
[1726586905404,15.7502,135.6,135.57,50.0]
[1726586906421,15.7502,135.6,135.57,57.3762]
[1726586906611,15.7502,135.6,135.57,50.0]
[1726586908342,46.8567,135.67,135.62,50.0]
[1726586908343,16.0207,135.64,135.62,50.0]
[1726586908814,22.5195,135.67,135.64,50.0]
[1726586909719,22.5195,135.67,135.64,57.3724]
[1726586910232,22.5195,135.67,135.64,50.0]
[1726586911216,22.5195,135.67,135.62,50.0]
[1726586911928,22.5195,135.67,135.64,50.0]
[1726586913322,16.0207,135.67,135.64,50.0]
[1726586915817,16.0207,135.67,135.62,75.8061]
[1726586916023,7.3713,135.66,135.62,50.0]
[1726586916219,16.0207,135.67,135.6,50.0]
[1726586916220,7.3721,135.65,135.6,50.0]
[1726586916424,13.5575,135.64,135.6,50.0]
[1726586917232,7.373,135.63,135.58,50.0]
[1726586917834,7.373,135.63,135.58,57.3756]
[1726586918227,7.373,135.63,135.58,50.0]
[1726586918947,23.2101,135.61,135.58,50.0]
[1726586919128,15.8357,135.61,135.58,50.0]
[1726586921936,15.8357,135.61,135.58,57.3753]
[1726586922430,15.8357,135.61,135.58,50.0]
[1726586923229,15.8357,135.61,135.55,50.0]
[1726586923437,7.3757,135.58,135.55,50.0]
[1726586923636,7.3753,135.59,135.55,50.0]
[1726586924039,6.4483,135.6,135.53,50.2672873]
[1726586924330,7.3767,135.57,135.53,50.2672873]
[1726586925036,7.3758,135.58,135.53,57.6455873]
[1726586925238,13.8233,135.6,135.55,57.3773]
[1726586926152,13.8233,135.6,135.53,50.2672873]
[1726586926153,6.4483,135.6,135.53,50.2672873]
[1726586926354,6.4483,135.6,135.53,57.6452873]
[1726586926559,6.4483,135.6,135.53,50.2672873]
[1726586926856,20.0,135.59,135.53,0.2672873]
[1726586927184,7.3768,135.56,135.53,0.2672873]
[1726586927535,7.3764,135.57,135.53,0.2672873]
[1726586927759,20.0,135.59,135.53,0.2672873]
[1726586928262,18.4395,135.58,135.53,0.2672873]
[1726586928475,7.3768,135.56,135.53,0.2672873]
[1726586928677,23.9033,135.57,135.53,0.2672873]
[1726586928975,23.9033,135.57,135.53,7.6456873]
[1726586929363,23.9033,135.57,135.54,57.3778]
[1726586929364,16.5268,135.57,135.54,57.3778]
[1726586929861,16.5268,135.57,135.54,68.4444]
[1726586930984,16.5268,135.57,135.54,50.0]
[1726586931269,7.3775,135.55,135.53,0.2672873]
[1726586932474,7.3771,135.56,135.53,0.2672873]
[1726586934682,23.9031,135.57,135.53,0.2672873]
[1726586934850,23.9031,135.57,135.53,7.6456873]
[1726586935172,23.9031,135.57,135.53,0.2672873]
[1726586935371,7.3768,135.56,135.53,0.2672873]
[1726586935774,23.9031,135.57,135.53,0.2672873]
[1726586936002,7.3755,135.59,135.54,57.3778]
[1726586936802,7.3758,135.58,135.54,57.3778]
[1726586938394,7.3752,135.59,135.54,57.3778]
[1726586939176,30.3787,135.6,135.56,57.3767]
[1726586939495,23.9305,135.6,135.56,50.0]
[1726586939696,7.3752,135.59,135.55,25.8203]
[1726586939880,7.3752,135.59,135.55,18.4431]
[1726586941290,23.9303,135.6,135.56,57.3766]
[1726586941598,15.7293,135.64,135.59,50.0]
[1726586941976,15.7293,135.64,135.61,50.0]
[1726586942304,15.7293,135.64,135.55,22.85375488]
[1726586942305,23.1018,135.64,135.59,50.0]
[1726586943476,23.1018,135.64,135.59,57.375]
[1726586943676,15.7293,135.64,135.59,57.375]
[1726586944889,15.7293,135.64,135.6,7.3741]
[1726586945088,6.0518,135.66,135.61,57.374]
[1726586945289,6.0518,135.66,135.62,7.3735]
[1726586945593,20.0,135.66,135.62,7.3735]
[1726586945904,27.3714,135.66,135.61,57.3739]
[1726586947002,7.372,135.65,135.6,7.3745]
[1726586947301,27.3715,135.66,135.61,50.0]
[1726586947600,20.0,135.66,135.61,57.374]
[1726586947786,20.0,135.66,135.62,7.3735]
[1726586947987,15.8442,135.67,135.63,57.3729]
[1726586948170,0.5210404,135.68,135.63,57.3729]
[1726586948369,0.5210404,135.68,135.64,7.3723]
[1726586948778,7.8913404,135.68,135.63,50.0]
[1726586948992,7.3715,135.66,135.61,68.4346]
[1726586949779,7.3728,135.64,135.58,75.8141]
[1726586950302,7.3731,135.63,135.58,75.8141]
[1726586951278,7.3731,135.63,135.58,68.4388]
[1726586951487,7.3738,135.62,135.57,7.3761]
[1726586951701,7.3741,135.61,135.56,57.3766]
[1726586951996,7.3737,135.62,135.57,7.3762]
[1726586952208,16.28019,135.65,135.56,50.0]
[1726586952391,7.3741,135.61,135.56,57.3762]
[1726586952583,26.6153,135.64,135.56,57.3762]
[1726586953282,0.12549,135.63,135.56,50.0]
[1726586954201,7.3746,135.6,135.56,50.0]
[1726586954599,7.3746,135.6,135.56,57.3767]
[1726586954809,18.55859,135.63,135.54,50.0]
[1726586955009,20.0,135.62,135.54,50.0]
[1726586955379,7.3753,135.59,135.54,57.3775]
[1726586955678,7.3753,135.59,135.55,7.3773]
[1726586955890,7.3748,135.6,135.55,7.3773]
[1726586956687,7.3751,135.59,135.54,75.822]
[1726586960519,7.3778,135.54,135.53,0.2672873]
[1726586960816,7.3778,135.54,135.49,0.2672873]
[1726586960817,7.3795,135.51,135.49,0.2672873]
[1726586961030,7.38,135.5,135.49,0.2672873]
[1726586961174,7.3796,135.51,135.49,0.2672873]
[1726586962003,7.38,135.5,135.49,0.2672873]
[1726586964303,27.50549,135.5,135.49,0.2672873]
[1726586964705,27.38,135.5,135.49,0.2672873]
[1726586971693,20.0,135.5,135.49,0.2672873]
[1726586971916,27.38,135.5,135.49,0.2672873]
[1726586972220,7.3797,135.51,135.49,0.2672873]
[1726586972415,7.379,135.52,135.49,0.2672873]
[1726586973500,7.3785,135.53,135.49,7.6476873]
[1726586973713,7.3792,135.52,135.49,0.2672873]
[1726586975197,7.3786,135.53,135.49,0.2672873]
[1726586975399,7.3779,135.54,135.49,57.6474873]
[1726586976598,7.3786,135.53,135.49,57.6474873]
[1726586976795,7.3786,135.53,135.49,0.2672873]
[1726586977388,7.3786,135.53,135.49,7.6476873]
[1726586978099,7.3786,135.53,135.49,0.2672873]
[1726586979420,20.12549,135.54,135.49,0.2672873]
[1726586979600,38.57059,135.54,135.49,0.2672873]
[1726586980818,7.38,135.5,135.49,0.2672873]
[1726586981026,7.3797,135.51,135.49,0.2672873]
[1726586981404,7.38,135.5,135.49,0.2672873]
[1726586983896,7.50549,135.5,135.49,0.2672873]
[1726586987009,27.50549,135.5,135.49,0.2672873]
[1726586988031,15.549,135.55,135.5,7.3799]
[1726586988204,7.3788,135.53,135.49,0.2672873]
[1726586988402,7.379,135.52,135.49,0.2672873]
[1726586989502,7.3796,135.51,135.49,0.2672873]
[1726586989913,44.027864,135.54,135.49,0.2672873]
[1726586990114,7.38,135.51,135.49,0.2672873]
[1726586990711,7.38,135.5,135.49,0.2672873]
[1726586992333,27.50549,135.5,135.49,0.2672873]
[1726586992631,27.3822,135.46,135.45,0.2672873]
[1726586993708,7.3822,135.46,135.45,0.2672873]
[1726586994131,7.3818,135.47,135.45,0.2672873]
[1726586995013,7.3822,135.46,135.45,0.2672873]
[1726586996331,27.3822,135.46,135.45,0.2672873]
[1726586996826,27.50769,135.46,135.45,0.2672873]
[1726586999424,7.3842,135.43,135.4,0.5210404]
[1726586999625,38.70808,135.45,135.4,0.5210404]
[1726586999810,7.3846,135.42,135.4,0.5210404]
[1726587000714,38.58259,135.45,135.4,0.5210404]
[1726587000914,7.3842,135.43,135.4,0.5210404]
[1726587001319,38.58259,135.45,135.4,0.5210404]
[1726587001515,7.3849,135.41,135.4,0.5210404]
[1726587001715,20.0,135.4,135.37,0.2672873]
[1726587002435,20.12549,135.43,135.37,0.2672873]
[1726587002727,20.0,135.43,135.37,0.2672873]
[1726587002935,27.384,135.43,135.38,7.3865]
[1726587003123,27.384,135.43,135.38,57.5011662]
[1726587003450,11.83381683,135.46,135.38,50.1146662]
[1726587003737,7.3828,135.45,135.4,7.3854]
[1726587003912,7.3828,135.45,135.4,50.0]
[1726587004238,7.3829,135.45,135.4,50.0]
[1726587004439,11.83381683,135.46,135.4,50.0]
[1726587004440,19.21601683,135.46,135.4,50.0]
[1726587004643,19.21601683,135.46,135.4,57.98875232]
[1726587005007,7.3828,135.45,135.4,63.9034]
[1726587006213,20.0,135.45,135.4,63.9034]
[1726587006413,20.0,135.45,135.41,7.3848]
[1726587006628,20.0,135.45,135.4,6.518]
[1726587006820,27.3828,135.45,135.4,56.518]
[1726587007027,7.3839,135.43,135.4,6.518]
[1726587007535,20.0,135.45,135.4,6.518]
[1726587007725,20.0,135.45,135.4,56.518]
[1726587007922,20.0,135.45,135.41,7.3849]
[1726587008535,20.0,135.45,135.4,63.9033]
[1726587009246,20.0,135.45,135.41,7.3847]
[1726587009746,11.83381683,135.46,135.42,50.0]
[1726587009937,0.1659459,135.5,135.46,50.0]
[1726587010112,0.1659459,135.5,135.46,57.3818]
[1726587010537,7.3806,135.49,135.46,50.0]
[1726587010845,7.5459459,135.5,135.46,50.0]
[1726587011264,7.3806,135.49,135.45,15.2928]
[1726587011544,7.3806,135.49,135.46,50.0]
[1726587012329,7.5461459,135.5,135.46,50.0]
[1726587012948,20.1659459,135.5,135.46,57.3822]
[1726587013324,20.1659459,135.5,135.46,63.624]
[1726587013552,0.1659459,135.5,135.48,50.0]
[1726587013843,0.1659459,135.5,135.49,31.157484]
[1726587014024,0.1659459,135.5,135.49,47.207464]
[1726587020648,0.1659459,135.5,135.49,39.575884]
[1726587020833,0.1659459,135.5,135.48,50.0]
[1726587021332,7.5459459,135.5,135.48,50.0]
[1726587021535,0.1659459,135.5,135.48,50.0]
[1726587021956,0.1659459,135.5,135.48,57.3811]
[1726587022151,0.1659459,135.5,135.49,7.3806]
[1726587023757,0.1659459,135.5,135.49,32.88044003]
[1726587024056,0.1659459,135.5,135.49,31.408464]
[1726587024636,0.1659459,135.5,135.49,47.848164]
[1726587025965,0.1659459,135.5,135.49,67.848164]
[1726587026334,0.1659459,135.5,135.49,69.3235139]
[1726587026643,0.1659459,135.5,135.49,67.848164]
[1726587027734,0.1659459,135.5,135.49,23.8203]
[1726587029043,0.1659459,135.5,135.49,47.848164]
[1726587029356,0.1659459,135.5,135.49,31.408464]
[1726587031041,0.1659459,135.5,135.49,24.027864]
[1726587031434,0.1659459,135.5,135.49,31.408464]
[1726587032245,0.2806121,135.54,135.53,119.726874]
[1726587032557,0.2806121,135.54,135.53,135.752374]
[1726587032855,0.2806121,135.54,135.53,135.877864]
[1726587036050,0.2806121,135.54,135.53,115.877864]
[1726587037073,0.2806121,135.54,135.53,75.8245]
[1726587038463,0.2806121,135.54,135.53,99.852364]
[1726587039467,0.2806121,135.54,135.53,92.473964]
[1726587039767,0.2806121,135.54,135.53,99.852364]
[1726587044949,0.2806121,135.54,135.53,119.852364]
[1726587048466,0.2806121,135.54,135.53,142.70611888]
[1726587048861,0.2806121,135.54,135.53,165.46551888]
[1726587049073,0.2806121,135.58,135.57,75.8168]
[1726587049274,0.2806121,135.58,135.57,99.844664]
[1726587051669,0.2806121,135.58,135.57,100.90929019]
[1726587053460,0.2806121,135.58,135.57,99.844664]
[1726587054797,0.2806121,135.58,135.57,75.94229]
[1726587055089,0.2806121,135.58,135.57,68.4406]
[1726587055470,0.2806121,135.58,135.57,50.0]
[1726587057295,0.2806121,135.58,135.57,57.3762]
[1726587057485,0.2806121,135.58,135.57,58.390427]
[1726587058190,0.2806121,135.58,135.57,58.51589683]
[1726587058397,0.2806121,135.58,135.57,81.404064]
[1726587059385,0.2806121,135.58,135.57,74.027864]
[1726587059586,0.2806121,135.58,135.57,73.776884]
[1726587060292,0.2806121,135.58,135.57,81.278574]
[1726587060668,0.2806121,135.58,135.57,81.404064]
[1726587061365,0.2806121,135.58,135.57,73.776884]
[1726587061770,0.2806121,135.58,135.57,75.25179014]
[1726587061974,0.2806121,135.58,135.57,82.87897014]
[1726587062502,0.2806121,135.58,135.57,81.404064]
[1726587064094,0.2806121,135.58,135.57,101.404064]
[1726587064674,7.3725,135.64,135.62,50.0]
[1726587065078,7.6367042,135.64,135.62,50.0]
[1726587065279,7.3732,135.63,135.6,50.0]
[1726587065806,0.939554,135.64,135.6,50.0]
[1726587065807,0.939554,135.64,135.62,50.0]
[1726587067703,8.311954,135.64,135.62,50.0]
[1726587068384,0.939554,135.64,135.6,50.0]
[1726587068590,8.312354,135.64,135.6,50.0]
[1726587068894,0.939554,135.64,135.6,50.0]
[1726587069096,7.373,135.63,135.6,50.0]
[1726587069410,7.3732,135.63,135.6,50.0]
[1726587071111,0.939554,135.64,135.58,50.0]
[1726587071280,7.3748,135.6,135.58,50.0]
[1726587071485,7.3742,135.61,135.58,50.0]
[1726587071987,7.3736,135.62,135.58,50.0]
[1726587072507,7.3742,135.61,135.58,50.0]
[1726587072808,22.821,135.6,135.57,50.0]
[1726587073007,7.3736,135.62,135.59,50.0]
[1726587073190,15.446,135.63,135.61,50.0]
[1726587073589,22.8192,135.63,135.61,50.0]
[1726587075584,8.312054,135.64,135.61,50.0]
[1726587075998,0.939554,135.64,135.61,57.374]
[1726587076304,0.939554,135.64,135.61,50.0]
[1726587076601,7.3735,135.63,135.59,75.8127]
[1726587076808,7.3741,135.61,135.59,50.0]
[1726587077105,7.3737,135.62,135.59,50.0]
[1726587077606,20.0,135.61,135.56,50.0]
[1726587077910,7.3762,135.57,135.56,50.0]
[1726587078079,7.3768,135.56,135.54,50.0]
[1726587078285,7.3773,135.55,135.54,50.0]
[1726587078695,7.3773,135.55,135.52,50.0]
[1726587079013,7.378,135.54,135.52,50.0]
[1726587079518,7.3784,135.53,135.52,50.0]
[1726587080006,7.3784,135.53,135.47,51.28279335]
[1726587080007,20.0,135.53,135.47,51.28279335]
[1726587080181,7.3807,135.49,135.47,50.0]
[1726587080379,7.3807,135.49,135.46,0.1068117]
[1726587080610,7.3812,135.48,135.46,0.1068117]
[1726587081014,18.4468,135.53,135.47,50.0]
[1726587081216,20.0,135.52,135.47,50.0]
[1726587082285,7.3801,135.5,135.47,50.0]
[1726587082481,20.0,135.52,135.46,0.1068117]
[1726587082707,7.3817,135.47,135.46,0.1068117]
[1726587085689,27.3812,135.48,135.46,0.1068117]
[1726587086004,6.1198,135.49,135.46,0.1068117]
[1726587086723,7.3812,135.48,135.46,0.1068117]
[1726587088428,13.5004,135.49,135.46,0.1068117]
[1726587089023,7.3806,135.49,135.47,50.0]
[1726587089405,7.3802,135.5,135.47,50.0]
[1726587089906,34.0045,135.54,135.49,50.0]
[1726587090127,7.3795,135.51,135.49,50.0]
[1726587090624,7.3791,135.52,135.49,50.0]
[1726587092609,15.5589,135.54,135.51,50.0]
[1726587092610,20.0,135.53,135.51,50.0]
[1726587092917,22.9372,135.54,135.51,50.0]
[1726587093127,7.3773,135.55,135.53,50.0]
[1726587093313,7.5341925,135.56,135.53,50.0]
[1726587093898,0.1573925,135.56,135.53,50.0]
[1726587094102,0.1573925,135.56,135.55,50.0]
[1726587095207,0.1573925,135.56,135.53,50.0]
[1726587095620,7.5341925,135.56,135.53,50.0]
[1726587095933,0.1573925,135.56,135.55,73.776884]
[1726587096603,0.1573925,135.56,135.55,50.0]
[1726587097217,0.1573925,135.56,135.55,73.776884]
[1726587097415,0.1573925,135.56,135.55,81.405164]
[1726587098706,0.1573925,135.56,135.55,73.776884]
[1726587099336,0.1573925,135.56,135.55,50.0]
[1726587100240,7.5341925,135.56,135.55,50.0]
[1726587100529,7.5341925,135.56,135.53,50.0]
[1726587103607,7.3773,135.55,135.53,50.0]
[1726587104335,0.1573925,135.56,135.51,50.0]
[1726587104511,16.3513925,135.56,135.51,50.0]
[1726587105007,20.0,135.55,135.51,50.0]
[1726587105405,7.3789,135.52,135.51,50.0]
[1726587106334,7.3789,135.52,135.46,0.1068117]
[1726587106335,7.3805,135.5,135.49,50.0]
[1726587106920,7.3797,135.51,135.49,50.0]
[1726587107237,7.38,135.5,135.49,50.0]
[1726587107934,7.38,135.5,135.46,25.9441117]
[1726587107935,7.3806,135.49,135.46,68.5621117]
[1726587108307,7.3802,135.5,135.48,50.0]
[1726587110945,7.3795,135.51,135.48,50.0]
[1726587111742,7.3792,135.52,135.48,57.3811]
[1726587112045,20.0,135.55,135.48,57.3811]
[1726587112046,7.378,135.54,135.52,50.0]
[1726587112257,7.3775,135.55,135.52,50.0]
[1726587112544,7.3774,135.55,135.52,50.0]
[1726587112715,7.3781,135.54,135.52,50.0]
[1726587113544,7.3784,135.53,135.52,50.0]
[1726587114038,7.3794,135.52,135.5,50.0]
[1726587114547,7.3785,135.53,135.5,50.0]
[1726587114753,7.3795,135.51,135.5,50.0]
[1726587115048,18.4436,135.55,135.5,50.0]
[1726587115049,7.379,135.52,135.5,50.0]
[1726587117549,18.4436,135.55,135.5,50.0]
[1726587117550,7.3795,135.51,135.5,50.0]
[1726587117724,7.38,135.5,135.48,50.0]
[1726587117924,18.4436,135.55,135.5,50.0]
[1726587117925,7.3792,135.52,135.5,50.0]
[1726587118322,7.3795,135.51,135.48,50.0]
[1726587118540,20.0,135.52,135.48,50.0]
[1726587119147,20.0,135.52,135.46,50.1068117]
[1726587119450,7.3813,135.48,135.46,50.1068117]
[1726587120650,7.3808,135.49,135.46,50.1068117]
[1726587121148,7.3811,135.48,135.46,50.1068117]
[1726587121354,7.3808,135.49,135.46,50.1068117]
[1726587122345,7.3811,135.48,135.46,50.1068117]
[1726587122553,7.3807,135.49,135.46,50.1068117]
[1726587123136,20.0,135.54,135.48,50.0]
[1726587123339,20.0,135.54,135.5,50.0]
[1726587123548,32.80139111,135.55,135.5,50.0]
[1726587123763,7.3786,135.53,135.5,50.0]
[1726587123963,7.378,135.54,135.5,50.0]
[1726587124147,7.3784,135.53,135.5,50.0]
[1726587125268,7.378,135.54,135.5,57.38]
[1726587125571,7.3785,135.53,135.5,50.0]
[1726587126448,20.0,135.54,135.5,50.0]
[1726587126644,7.3816,135.48,135.46,50.1068117]
[1726587126865,18.4476,135.52,135.46,50.1068117]
[1726587127074,20.0,135.51,135.46,50.1068117]
[1726587127281,7.3817,135.47,135.46,0.1068117]
[1726587127573,7.3838,135.43,135.42,0.2642042]
[1726587127746,0.12549,135.47,135.39,50.0]
[1726587127747,7.3853,135.41,135.39,50.0]
[1726587127942,7.3855,135.4,135.39,50.0]
[1726587128148,7.3849,135.41,135.39,50.0]
[1726587128452,7.3855,135.4,135.38,0.2642042]
[1726587128765,7.386,135.39,135.38,0.2642042]
[1726587129066,7.3855,135.4,135.38,0.2642042]
[1726587130056,7.386,135.39,135.38,0.2642042]
[1726587130748,20.0,135.38,135.34,0.2642042]
[1726587130969,7.3882,135.35,135.34,0.2642042]
[1726587131474,20.0,135.38,135.29,8.67641736]
[1726587131475,7.39,135.32,135.29,50.0]
[1726587132867,7.3894,135.33,135.29,50.0]
[1726587133051,7.3888,135.34,135.31,50.0]
[1726587133575,7.3888,135.34,135.31,50.2537531]
[1726587134754,7.3894,135.33,135.31,50.2537531]
[1726587134957,7.3898,135.32,135.31,0.2537531]
[1726587135565,7.3909,135.3,135.29,0.2448966]
[1726587135961,7.3905,135.31,135.29,0.2448966]
[1726587137072,20.0,135.31,135.29,0.2448966]
[1726587137461,27.3905,135.31,135.29,0.2448966]
[1726587138050,7.39,135.32,135.29,0.2448966]
[1726587138547,7.39,135.32,135.29,50.2448966]
[1726587140172,7.3906,135.31,135.29,0.2448966]
[1726587140481,7.3909,135.3,135.29,0.2448966]
[1726587141448,7.3909,135.3,135.25,50.0]
[1726587141449,20.0,135.3,135.25,50.0]
[1726587141682,7.3921,135.28,135.25,50.0]
[1726587142407,7.3915,135.29,135.25,50.0]
[1726587142585,20.0,135.3,135.25,50.0]
[1726587143882,7.3921,135.28,135.25,50.0]
[1726587145054,27.3915,135.3,135.25,50.0]
[1726587145362,20.0,135.29,135.25,50.0]
[1726587146190,27.392,135.29,135.25,50.0]
[1726587148078,20.0,135.29,135.25,50.0]
[1726587148281,7.3926,135.27,135.24,50.0]
[1726587148465,20.0,135.31,135.24,50.0]
[1726587149760,20.0,135.31,135.23,0.6716186]
[1726587150170,7.3926,135.27,135.23,0.6716186]
[1726587150782,7.3932,135.26,135.23,0.6716186]
[1726587151177,15.4559,135.28,135.23,0.6716186]
[1726587151685,7.3938,135.25,135.23,0.6716186]
[1726587151863,7.3942,135.24,135.23,0.6716186]
[1726587152416,15.4559,135.28,135.19,50.0]
[1726587152683,7.397,135.19,135.17,0.4178655]
[1726587152889,7.397,135.19,135.15,0.2537531]
[1726587152890,20.0,135.2,135.15,0.2537531]